[Event "IX Iberoamericano Championship 2023"]
[Site "Panama City"]
[Date "2023.11.30"]
[Round "6.7"]
[White "Barboza Viquez, Martin Eduardo"]
[Black "Diaz Perez, Michel Alejandro"]
[Result "0-1"]
[ECO "B12"]
[WhiteElo "1657"]
[BlackElo "2459"]
[Annotator "TA"]
[PlyCount "66"]
[EventDate "2023.11.27"]
[EventType "swiss"]
[EventCountry "PAN"]
[SourceTitle "playchess.com"]
[Source "ChessBase"]
[SourceQuality "1"]
[TimeControl "5400+30"]

{[%evp 13,66,18,27,25,34,23,38,13,27,-16,13,-45,-39,-37,-27,-72,-27,-28,-25,-60,-41,-150,-128,-133,-146,-157,-47,-58,-43,-70,0,0,0,-122,-118,-132,-116,-150,-50,-64,-71,-620,-627,-626,-582,-621,-621,-555,-554,-562,-562,-525,-493,-1363,-833]} 1. e4 {[%emt 0:00:30]} c6 {[%emt 0:00:30]} 2. d4 {[%emt 0:00:30]} d5 {[%emt 0:00:30]} 3. e5 {[%emt 0:00:30]} Bf5 {[%emt 0:00:10]} 4. Nf3 {[%emt 0:00:00]} e6 {[%emt 0:00:04]} 5. Be2 {[%emt 0:00:00]} Nd7 {[%emt 0:00:47]} 6. O-O {[%emt 0:01:25]} h6 {[%emt 0:00:46] 6...a5 gains popularity.} 7. c3 {[%emt 0:00:37]} Ne7 {[%emt 0:00:32]} 8. Nbd2 {[%emt 0:19:53] B12: Caro-Kann: Advance Variation.} g5 {[%emt 0:04:50][%cal Bg7g5,Bg5h4][%mdl 32]} 9. h3 {[%emt 0:05:48]} Bg7 {[%emt 0:02:40] [#]} 10. Nh2 $146 {[%emt 0:04:05] White is slightly better.} ({Predecessor:} 10. Ne1 Qc7 11. a4 O-O 12. Ndf3 f6 13. exf6 Rxf6 14. Nd3 Ng6 15. Be3 Re8 16. Nde5 {½-½ Vingris,M (2116)-Wagner,L (2253) Vienna Ottakring 100 Years 2023 (8)}) 10... Qc7 {[%emt 0:02:49]} 11. b4 {[%emt 0:07:21]} O-O {[%emt 0:04:42] [#]} 12. h4 {[%emt 0:08:57]} gxh4 $15 {[%emt 0:06:45]} 13. Nb3 {[%emt 0:02:10]} f6 {[%emt 0:03:07]} 14. f4 {[%emt 0:00:17]} fxe5 {[%emt 0:01:21]} (14... h3 $5 15. Bf3 hxg2 $17) 15. fxe5 {[%emt 0:00:08]} h3 {[%emt 0:01:19]} 16. Ng4 $1 {[%emt 0:08:49]} hxg2 {[%emt 0:00:30]} 17. Kxg2 {[%emt 0:00:30]} (17. Rf2 $1 $15) 17... Be4+ $17 {[%emt 0:03:02]} 18. Bf3 {[%emt 0:01:36]} Rxf3 {[%emt 0:00:30]} 19. Rxf3 {[%emt 0:00:30]} Nf5 {[%emt 0:06:04] Some like it hot} (19... Bxf3+ 20. Qxf3 Nf5 21. Qh3 $11) ({Black should play} 19... Rf8 $17 20. Nd2 Nf5) 20. Kg1 $1 $15 {[%emt 0:00:26] Rh3 would be deadly.} Bxf3 {[%emt 0:05:07]} (20... Bxe5 {is more complex.} 21. Nxh6+ Nxh6 22. Bxh6 Bg7) 21. Qxf3 {[%emt 0:01:11]} h5 {[%emt 0:00:30]} (21... Rf8 $15 22. Qh3 Kh7) 22. Ne3 $11 {[%emt 0:00:30]} Rf8 $36 {[%emt 0:00:30][%cal Of5d4][%mdl 2048] Black is pushing.} 23. Nxf5 {[%emt 0:00:30]} (23. Qxh5 $11 {remains equal.} Bxe5 24. dxe5 (24. Qg6+ Ng7 $17) 24... Nxe5 25. Qh3) 23... Rxf5 $17 {[%emt 0:02:09]} 24. Qg2 {[%emt 0:05:31]} Nf8 {[%emt 0:03:05][%cal Bd7f8,Bf8g6,Bg6h4,Bh4f3][%mdl 32]} 25. Bd2 {[%emt 0:00:23] [#]} Qf7 {[%emt 0:00:07]} ({Better is} 25... b6 $1 $17 26. Rf1 Qf7 27. Rxf5 Qxf5) 26. Na5 $1 $15 {[%emt 0:05:36]} Ng6 {[%emt 0:01:57] aiming for ...Nh4.} (26... Kh7 $5 {[%cal Rf8g6]} 27. Rf1 Bh6 28. Bxh6 Kxh6 29. Qd2+ (29. Rxf5 exf5 30. Qd2+ Kh7 $17) 29... Kg7 30. Qg2+ Kh6 31. Qd2+ (31. Rxf5 exf5 32. Qd2+ Kh7 $17) 31... Kh7 $17) 27. Rf1 $2 {[%emt 0:03:42][%mdl 8192] White does not recover from this.} (27. Nxb7 $17 Nh4 28. Nd6 Nxg2 29. Nxf7) 27... Nh4 $19 {[%emt 0:01:11] Black is clearly winning.} 28. Rxf5 {[%emt 0:01:34]} Qxf5 {[%emt 0:00:03]} 29. Qe2 {[%emt 0:03:19]} Qf3 {[%emt 0:03:35]} ({Weaker is} 29... Nf3+ 30. Kg2 Qg4+ 31. Kf2 Nxd2 32. Qxd2 $17) 30. Qf2 {[%emt 0:02:39]} Qh3 {[%emt 0:00:30] And now ...Nf3+ would win.} 31. Qe2 {[%emt 0:00:30]} Qg3+ {[%emt 0:00:30]} ({Don't go for} 31... Nf3+ $2 32. Kf2 Nh4 33. Nb3 $19) 32. Kf1 {[%emt 0:00:30]} Nf3 {[%emt 0:00:30][%csl Gf3][%cal Rg3g1]} 33. Be3 {[%emt 0:00:30] Dodges Qg1+} (33. Qg2 $142 Qxg2+ {[%mdl 64] Remove Defender} 34. Kxg2 Nxd2 35. Nxb7) 33... Nh2+ {[%emt 0:00:30] Weighted Error Value: White=0.66/Black=0.19 (very precise)} 0-1

[Event "IX Iberoamericano Championship 2023"]
[Site "Panama City"]
[Date "2023.11.30"]
[Round "6.8"]
[White "Berdayes Ason, Dylan Isidro"]
[Black "Esmeraldas Huachi, Anderson"]
[Result "1-0"]
[ECO "B90"]
[WhiteElo "2507"]
[BlackElo "2120"]
[Annotator "TA"]
[PlyCount "105"]
[EventDate "2023.11.27"]
[EventType "swiss"]
[EventCountry "PAN"]
[SourceTitle "playchess.com"]
[Source "ChessBase"]
[SourceQuality "1"]
[TimeControl "5400+30"]

{[%evp 28,105,33,28,29,33,29,30,37,37,27,27,43,11,85,93,87,83,94,85,77,78,91,93,158,164,173,116,140,136,155,147,155,145,167,162,179,183,192,175,230,180,218,222,206,210,207,210,196,203,219,207,217,189,289,281,285,291,395,401,374,364,382,350,392,387,1356,1366,1947,1945,29968,1222,29975,29976,29976,29977,29976,29977,6536,5302]} 1. e4 {[%emt 0:00:30]} c5 {[%emt 0:00:30]} 2. Nf3 {[%emt 0:00:00]} d6 {[%emt 0:00:53]} 3. d4 {[%emt 0:00:00]} cxd4 {[%emt 0:00:45]} 4. Nxd4 {[%emt 0:00:00]} Nf6 {[%emt 0:00:13]} 5. Nc3 {[%emt 0:00:00]} a6 {[%emt 0:00:05]} 6. Be3 {[%emt 0:00:00]} e5 {[%emt 0:00:06]} 7. Nb3 {[%emt 0:00:00]} Be7 {[%emt 0:00:20]} 8. f3 {[%emt 0:00:00]} Be6 {[%emt 0:00:08]} 9. Qd2 {[%emt 0:00:00]} O-O {[%emt 0:03:02]} 10. O-O-O {[%emt 0:00:01]} b5 {[%emt 0:06:37]} 11. g4 {[%emt 0:00:06][%cal Bg2g4,Bg4g5][%mdl 32]} Qc7 {[%emt 0:10:29]} 12. g5 {[%emt 0:01:37]} Nh5 {[%emt 0:01:04]} 13. Kb1 {[%emt 0:01:18]} Nd7 {[%emt 0:00:20]} 14. Nd5 {[%emt 0:00:37]} Bxd5 {[%emt 0:00:02]} 15. exd5 {[%emt 0:00:01]} Nb6 {[%emt 0:00:01] B90: Sicilian Najdorf: Unusual White 6th moves, 6 Be3 Ng4 and 6 Be3 e5.} 16. Na5 {[%emt 0:00:21] 16.Rg1 is not played anymore.} Nxd5 {[%emt 0:00:46][%mdl 64] Deflection} 17. Qxd5 {[%emt 0:00:03] And now Nc6 would win.} Qxa5 {[%emt 0:00:02] Black is weak on the light squares. White has an edge.} 18. Bd3 {[%emt 0:00:02][%cal Of3f4]} g6 {[%emt 0:06:00]} 19. Qb7 {[%emt 0:00:43] Repels Qc7} Qd8 {[%emt 0:20:38]} 20. Be4 {[%emt 0:08:27] [#]} Rc8 $146 {[%emt 0:02:04]} (20... Bxg5 $1 $11 21. Qxa8 Qxa8 22. Bxa8 Bxe3) ({Predecessor:} 20... Bxg5 21. Bc5 dxc5 22. Rxd8 Raxd8 23. Qxa6 b4 24. a4 bxa3 25. Qxa3 Be7 26. Qa7 Bd6 {1-0 Nimtz,M (2641)-Toth,B (2617) Lannaioli Memorial email 2007}) 21. Qxa6 {[%emt 0:09:36] White is much more active. The black rooks are badly placed.} Qd7 {[%emt 0:08:03]} 22. Rhg1 {[%emt 0:07:42]} Nf4 {[%emt 0:01:39]} 23. Bxf4 {[%emt 0:04:30]} exf4 {[%emt 0:00:02]} 24. Qb6 {[%emt 0:02:36]} Rb8 {[%emt 0:11:39]} 25. Qd4 {[%emt 0:01:00]} Qh3 {[%emt 0:04:43]} (25... Rfc8 $142) 26. Qa7 $16 {[%emt 0:02:59]} Qe6 {[%emt 0:02:32]} 27. h4 {[%emt 0:00:12]} ({Better is} 27. Bd5 $18 Qe3 28. Qd7) 27... Rfd8 {[%emt 0:03:18]} 28. Rge1 {[%emt 0:06:41]} Qd7 {[%emt 0:00:44] Against Bc6} 29. Qd4 {[%emt 0:01:24]} Bf8 {[%emt 0:00:09]} 30. Qf6 {[%emt 0:01:55]} Bg7 {[%emt 0:00:54]} 31. Qxf4 {[%emt 0:00:05]} Be5 {[%emt 0:00:01]} 32. Qe3 {[%emt 0:00:57]} Re8 {[%emt 0:00:10] [#]} 33. h5 $1 {[%emt 0:05:58][%mdl 512]} Qh3 {[%emt 0:02:51]} (33... Bg7 $142 34. h6 Bf8) 34. Rh1 {[%emt 0:02:26]} Qg3 {[%emt 0:00:09]} 35. Rdg1 {[%emt 0:02:14]} Qf4 {[%emt 0:00:09]} 36. Qb3 {[%emt 0:00:04]} Kf8 {[%emt 0:02:20]} 37. hxg6 {[%emt 0:07:03]} hxg6 {[%emt 0:00:01]} 38. a3 {[%emt 0:00:14]} Bg7 {[%emt 0:00:47]} 39. Rg4 {[%emt 0:01:26]} Qd2 {[%emt 0:00:57]} 40. c3 $40 {[%emt 0:01:22][%mdl 128] Black is in trouble.} Re5 {[%emt 0:00:33]} (40... Qe3 {was called for.} 41. Qd1 (41. Rh7 b4 $11) 41... Rbd8) 41. Rd1 $18 {[%emt 0:00:50][%mdl 64] Skewer, Deflection} ({Stronger than} 41. Rh7 d5 42. Qb4+ Kg8 43. Rxg7+ Kxg7 $11) 41... Qe3 {[%emt 0:03:02]} 42. Rxd6 {[%emt 0:00:38] Rd7 would be deadly.} b4 {[%emt 0:04:56]} 43. Rd7 {[%emt 0:06:37][%csl Gd7][%cal Rb3f7]} ({But not} 43. axb4 Qa7 44. Qc4 Re7 $18) 43... Re7 {[%emt 0:00:07]} 44. Rxe7 {[%emt 0:00:09]} Kxe7 {[%emt 0:00:02]} 45. axb4 {[%emt 0:02:49]} Rh8 {[%emt 0:02:05]} 46. Qa3 {[%emt 0:05:42]} Rh1+ $2 {[%emt 0:01:26]} (46... Be5 47. Qa5 Bf4) 47. Ka2 {[%emt 0:00:01] Threatening mate with b5+.} Be5 {[%emt 0:03:24]} 48. Bd5 {[%emt 0:04:41] Strongly threatening b5+.} Kf8 {[%emt 0:00:29] [#]} 49. f4 {[%emt 0:01:34]} Qd3 {[%emt 0:01:22]} 50. Qa8+ {[%emt 0:01:04]} Kg7 {[%emt 0:00:02]} 51. Bxh1 {[%emt 0:01:37]} Qc4+ {[%emt 0:00:10]} 52. Ka3 {[%emt 0:00:16]} Bxc3 {[%emt 0:00:10]} 53. bxc3 {[%emt 0:02:44] Weighted Error Value: White=0.07 (flawless) /Black=0.51} 1-0

[Event "IX Iberoamericano Championship 2023"]
[Site "Panama City"]
[Date "2023.11.30"]
[Round "6.9"]
[White "Villalba, Marcelo"]
[Black "Soto Hernandez, Henry"]
[Result "1/2-1/2"]
[ECO "C84"]
[WhiteElo "2241"]
[BlackElo "2490"]
[Annotator "TA"]
[PlyCount "38"]
[EventDate "2023.11.27"]
[EventType "swiss"]
[EventCountry "PAN"]
[SourceTitle "playchess.com"]
[Source "ChessBase"]
[SourceQuality "1"]
[TimeControl "5400+30"]

{[%evp 17,38,29,38,38,40,33,24,20,30,27,39,20,39,27,29,11,39,4,13,13,41,25,94]} 1. e4 {[%emt 0:04:43]} e5 {[%emt 0:00:35]} 2. Nf3 {[%emt 0:00:26]} Nc6 {[%emt 0:00:04]} 3. Bb5 {[%emt 0:00:27]} a6 {[%emt 0:00:11]} 4. Ba4 {[%emt 0:00:06]} Nf6 {[%emt 0:00:07]} 5. O-O {[%emt 0:00:16]} Be7 {[%emt 0:01:12]} 6. d3 {[%emt 0:00:16]} d6 {[%emt 0:00:17]} 7. c3 {[%emt 0:00:45]} O-O {[%emt 0:00:14]} 8. Re1 {[%emt 0:01:12]} b5 {[%emt 0:01:07]} 9. Bc2 {[%emt 0:03:07]} Re8 {[%emt 0:00:43]} 10. a4 {[%emt 0:01:22] C84: Closed Ruy Lopez: Unusual White 6th moves.} Rb8 {[%emt 0:01:30]} 11. axb5 {[%emt 0:07:27]} axb5 {[%emt 0:00:04]} 12. h3 {[%emt 0:08:41]} Bf8 {[%emt 0:00:43] [#]} 13. Nbd2 $146 {[%emt 0:08:09][%cal Bb1d2,Bd2f1,Bf1g3,Bg3f5][%mdl 32]} ({Predecessor:} 13. Bg5 h6 14. Bh4 g5 15. Bg3 Bg7 16. d4 Qe7 17. d5 Nd8 18. Nh2 h5 19. h4 {1-0 Chaucanes,L (1969)-Franco Valencia,B (2108) COL-ch (Women) 2007 (5)}) 13... Bb7 {[%emt 0:10:08]} 14. Nf1 {[%emt 0:13:03]} Ra8 {[%emt 0:10:27]} 15. Rxa8 {[%emt 0:01:49]} Qxa8 {[%emt 0:00:07]} 16. Ng3 {[%emt 0:01:38]} Ne7 {[%emt 0:14:36]} 17. Nh2 {[%emt 0:11:13]} Ng6 {[%emt 0:02:30]} 18. Ng4 {[%emt 0:00:45]} Nd7 {[%emt 0:10:44]} 19. Nf5 {[%emt 0:02:08]} Bc8 {[%emt 0:05:54] Weighted Error Value: White=0.11 (very precise) /Black=0.13 (very precise)} (19... d5 $11 {remains equal.}) 1/2-1/2

[Event "IX Iberoamericano Championship 2023"]
[Site "Panama City"]
[Date "2023.11.30"]
[Round "6.10"]
[White "Matamoros Franco, Carlos S."]
[Black "Portal Ramos, Cristhian"]
[Result "1/2-1/2"]
[ECO "A11"]
[WhiteElo "2455"]
[BlackElo "2085"]
[Annotator "TA"]
[PlyCount "80"]
[EventDate "2023.11.27"]
[EventType "swiss"]
[EventCountry "PAN"]
[SourceTitle "playchess.com"]
[Source "ChessBase"]
[SourceQuality "1"]
[TimeControl "5400+30"]

{[%evp 10,80,16,0,11,0,0,0,7,12,16,13,22,15,14,12,61,60,43,-5,29,40,30,29,28,14,66,58,58,9,11,5,42,41,57,29,57,27,100,37,39,27,37,19,31,30,48,43,66,66,66,69,91,93,161,160,143,102,91,52,129,54,196,131,191,66,130,0,200,0,137,0,186]} 1. c4 {[%emt 0:00:10]} c6 {[%emt 1:31:00]} 2. Nf3 {[%emt 0:01:08]} d5 {[%emt 0:00:00]} 3. g3 {[%emt 0:00:09]} Nf6 {[%emt 0:00:00]} 4. Bg2 {[%emt 0:00:10]} dxc4 {[%emt 0:00:00]} 5. O-O {[%emt 0:00:16]} Nbd7 {[%emt 0:00:00]} 6. Qc2 {[%emt 0:00:45]} Nb6 {[%emt 0:00:00] A11: English Opening: 1...c6.} 7. a4 {[%emt 0:01:22]} a5 {[%emt 0:00:00]} 8. Na3 {[%emt 0:00:12]} g6 {[%emt 0:00:00]} 9. Nxc4 {[%emt 0:00:31]} Nxc4 {[%emt 0:00:00]} 10. Qxc4 {[%emt 0:00:06]} Bg7 {[%emt 0:00:00]} 11. e4 {[%emt 1:31:11]} O-O {[%emt 0:00:00]} 12. d3 {[%emt 0:00:00]} b6 {[%emt 0:00:00] [#]} (12... Be6 $11 13. Qc2 Ng4) 13. e5 $146 {[%emt 0:00:00]} (13. Qxc6 Ba6 14. Be3 Bxd3 $11) ({Predecessor:} 13. Rd1 Ba6 14. Qc2 c5 15. Bf4 Rc8 16. Bh3 e6 17. Qb3 Nd7 18. d4 cxd4 19. Bg5 {0-1 Iskandarov,M (2577)-Mishra,A (2550) Sharjah Masters 6th 2023 (5)}) 13... Nd5 {[%emt 0:00:00]} 14. Qh4 {[%emt 0:00:00]} (14. Nd4 $14 {should be considered.} Nb4 15. Nxc6 (15. Bxc6 $2 {too greedy.} Ba6 $19) 15... Nxc6 16. Qxc6 (16. Bxc6 Ba6 $11)) 14... Qd7 {[%emt 0:00:00] [#]} 15. e6 $1 {[%emt 0:00:00]} fxe6 {[%emt 0:00:00]} (15... Qxe6 $2 16. Ng5 h5 17. Nxe6 $18) 16. Bh6 {[%emt 0:00:00]} Bf6 {[%emt 0:00:00]} 17. Qe4 {[%emt 0:00:00]} ({Of course not} 17. Ng5 Rd8 $11) 17... Rf7 {[%emt 0:00:00]} ({Better is} 17... Rd8 $11) 18. d4 {[%emt 0:00:00] White is more active.} Nb4 {[%emt 0:00:00]} 19. Ne5 {[%emt 0:00:00]} (19. Rac1 $14 {feels stronger.}) 19... Bxe5 $11 {[%emt 0:00:00]} 20. dxe5 {[%emt 0:00:00]} Ba6 {[%emt 0:00:00]} 21. Rfd1 {[%emt 0:00:00][%mdl 1024] White has compensation.} Nd5 {[%emt 0:00:00]} 22. h4 {[%emt 0:00:00]} Kh8 {[%emt 0:00:00] Black is weak on the dark squares} 23. Rd2 {[%emt 0:00:00]} Rg8 {[%emt 0:00:00]} (23... Rf5 $11) 24. Rad1 {[%emt 0:00:00]} (24. b4 $1 $16) 24... Bc8 {[%emt 0:00:00]} 25. Qe2 {[%emt 0:00:00]} Qc7 {[%emt 0:00:00]} 26. Bh3 {[%emt 0:00:00]} c5 {[%emt 0:00:00]} 27. Kh2 {[%emt 0:00:00]} Qc6 {[%emt 0:00:57]} 28. Qb5 {[%emt 0:00:00]} Qxb5 {[%emt 0:01:40]} 29. axb5 {[%emt 0:00:00]} Rf3 {[%emt 0:01:07]} 30. Bg2 $1 {[%emt 0:00:00]} Rf5 {[%emt 0:01:07] [#]} 31. Re1 $1 {[%emt 0:00:00]} Rd8 {[%emt 0:03:25]} (31... Rh5 $16 32. Bg5 h6) 32. g4 $18 {[%emt 0:00:46]} Rf7 {[%emt 0:00:13]} 33. Kg3 {[%emt 0:00:06]} Bb7 {[%emt 0:01:37]} 34. Be4 {[%emt 0:02:25]} Rc8 {[%emt 0:00:29]} (34... Ba8 $14) 35. f3 {[%emt 0:00:15]} (35. f4 $16) 35... Kg8 {[%emt 0:04:28] [#]} (35... Ba8 $1 $14) 36. Red1 {[%emt 0:01:52]} ({White should try} 36. h5 $1 $18 {[%cal Rh5g6]}) 36... Ba8 {[%emt 0:00:20]} (36... Kh8 $16) 37. Kh2 {[%emt 0:02:41]} (37. f4 $18) 37... Kh8 {[%emt 0:00:33]} (37... Rb8 $14) 38. Kg3 {[%emt 0:01:06]} (38. f4 $1 $16 {[%cal Rf4f5]}) 38... Kg8 {[%emt 0:00:06]} 39. Kh2 {[%emt 0:02:39]} Kh8 $1 {[%emt 0:00:05]} 40. Kg3 {[%emt 0:00:30]} (40. f4 $1 $16 {[%cal Rf4f5]}) 40... Kg8 {[%emt 0:00:05] Weighted Error Value: White=0.32/Black=0.24 (precise)} 1/2-1/2

[Event "IX Iberoamericano Championship 2023"]
[Site "Panama City"]
[Date "2023.11.30"]
[Round "6.11"]
[White "Estrada Nieto, Julian"]
[Black "Rodriguez Vila, Andres"]
[Result "0-1"]
[ECO "C79"]
[WhiteElo "2212"]
[BlackElo "2405"]
[Annotator "TA"]
[PlyCount "66"]
[EventDate "2023.11.27"]
[EventType "swiss"]
[EventCountry "PAN"]
[SourceTitle "playchess.com"]
[Source "ChessBase"]
[SourceQuality "1"]
[TimeControl "5400+30"]

{[%evp 21,66,0,8,0,0,0,0,0,0,0,0,0,0,1,12,-16,14,0,21,-31,-26,-29,-8,-10,-25,-34,27,-91,-106,-256,-250,-414,-415,-542,-492,-552,-527,-477,-459,-1025,-984,-984,-975,-954,-929,-1147,-1140]} 1. e4 {[%emt 0:04:18]} e5 {[%emt 0:00:25]} 2. Nf3 {[%emt 0:00:22]} Nc6 {[%emt 0:00:06]} 3. Bb5 {[%emt 0:00:11]} a6 {[%emt 0:01:04]} 4. Ba4 {[%emt 0:00:16]} Nf6 {[%emt 0:00:06]} 5. O-O {[%emt 0:00:50]} d6 {[%emt 0:00:14]} 6. Bxc6+ {[%emt 0:02:26]} bxc6 {[%emt 0:00:06]} 7. d4 {[%emt 0:01:21]} exd4 {[%emt 0:00:19]} 8. Nxd4 {[%emt 0:01:53]} c5 {[%emt 0:02:12]} 9. Nf3 {[%emt 0:07:46]} Bb7 {[%emt 0:00:05]} 10. Nc3 {[%emt 0:02:40]} Be7 {[%emt 0:01:20]} 11. Re1 {[%emt 0:03:00]} O-O {[%emt 0:00:57]} 12. Bg5 {[%emt 0:03:52] C79: Ruy Lopez: Steinitz-type lines with 3...a6 4 Ba4 Nf6 5 0-0 d6.} h6 {[%emt 0:01:48]} 13. Bh4 {[%emt 0:01:43]} Re8 {[%emt 0:05:14][%cal Of6e4]} 14. Qd3 {[%emt 0:16:33] The position is equal.} Nh5 {[%emt 0:07:17]} 15. Bxe7 {[%emt 0:02:00]} Qxe7 {[%emt 0:00:15] [#]} 16. Nd5 $146 {[%emt 0:04:33] Inhibits Nf4.} ({Predecessor:} 16. g3 Nf6 17. Nh4 a5 18. f3 a4 19. Nf5 Qe6 20. Ne3 Bc6 21. Rad1 Qe5 22. Kg2 {½-½ Silva Filho,A (2232)-Dutra,P (2205) BRA Cup27 sf04 email 2015}) 16... Qd7 {[%emt 0:00:53]} 17. h3 {[%emt 0:05:43]} Re6 {[%emt 0:04:05]} 18. Re3 {[%emt 0:05:03]} Rae8 {[%emt 0:00:41]} 19. Rae1 {[%emt 0:00:39]} Qd8 {[%emt 0:12:36]} 20. Kh2 {[%emt 0:10:23]} (20. g3 $11) 20... c6 $15 {[%emt 0:15:10]} 21. Nc3 {[%emt 0:00:56]} ({Much worse is} 21. Qb3 cxd5 22. Qxb7 d4 $17) 21... d5 {[%emt 0:00:32]} 22. exd5 {[%emt 0:02:05]} cxd5 {[%emt 0:00:08]} 23. Rxe6 $1 {[%emt 0:02:42]} fxe6 {[%emt 0:02:56]} (23... Rxe6 $15 24. Rxe6 Nf4 25. Re8+ (25. Qf5 Nxe6 26. b3 Qc7+ 27. Qe5 d4 $11) 25... Qxe8) 24. Kg1 {[%emt 0:06:27] [#]} (24. Qg6 $11 Nf6 25. Ne5) 24... Nf4 $1 $36 {[%emt 0:01:07][%mdl 2048] Black has strong initiative.} 25. Qd2 {[%emt 0:01:35] White does not recover from this.} (25. Qf1 $17) 25... Rf8 $19 {[%emt 0:00:09] And now ...Qf6 would win.} 26. Qd1 $2 {[%emt 0:08:04]} (26. Ne2 {was the only chance.} Nxh3+ 27. gxh3 Rxf3 28. Ng3) 26... Qf6 {[%emt 0:02:50][%cal Of4g2]} 27. Kh2 {[%emt 0:02:39] [#]} Nxg2 $1 {[%emt 0:00:47][%mdl 576] Discovered Attack. Black is clearly winning.} 28. Kxg2 {[%emt 0:01:18]} d4 {[%emt 0:00:59][%cal Bd5d4,Bd4d3][%mdl 32]} 29. Ne4 {[%emt 0:00:11]} Qg6+ {[%emt 0:00:06]} 30. Ng3 {[%emt 0:01:39]} (30. Nfg5 $142 Qxg5+ 31. Qg4) 30... Bxf3+ {[%emt 0:00:23][%mdl 64] Overworked Piece} 31. Qxf3 {[%emt 0:00:05]} Rxf3 {[%emt 0:00:05]} 32. Kxf3 {[%emt 0:00:04]} Qxc2 {[%emt 0:00:07]} 33. Rxe6 {[%emt 0:00:40]} d3 {[%emt 0:00:36] Weighted Error Value: White=0.71/Black=0.07 (flawless)} 0-1

[Event "IX Iberoamericano Championship 2023"]
[Site "Panama City"]
[Date "2023.11.30"]
[Round "6.12"]
[White "Noboa Silva, Kevin"]
[Black "Bravo Mallco, Kate Azumi"]
[Result "1-0"]
[ECO "B22"]
[WhiteElo "2318"]
[BlackElo "2004"]
[Annotator "RC"]
[PlyCount "113"]
[EventDate "2023.11.27"]
[EventType "swiss"]
[EventCountry "PAN"]
[SourceTitle "playchess.com"]
[Source "ChessBase"]
[SourceQuality "1"]
[TimeControl "5400+30"]

1. e4 {[%emt 0:00:15]} c5 {[%emt 0:16:53]} 2. c3 {[%emt 0:00:20]} d5 {[%emt 0:00:09]} 3. e5 {[%emt 0:00:26]} Bf5 {[%emt 0:10:35]} 4. d4 {[%emt 0:01:24]} Nc6 {[%emt 0:12:25]} 5. Bb5 e6 {[%emt 0:10:47]} 6. Ne2 {[%emt 0:06:02]} Qc7 {[%emt 0:00:15]} 7. O-O a6 {[%emt 0:42:56]} 8. Bxc6+ {[%emt 0:03:54]} Qxc6 {[%emt 0:00:00]} 9. dxc5 {[%emt 0:02:11]} Bxc5 {[%emt 0:00:00]} 10. b4 {[%emt 0:01:27]} Ba7 {[%emt 0:00:00]} 11. a4 {[%emt 0:03:15]} Qc7 {[%emt 0:00:00]} 12. Nd4 {[%emt 0:12:46]} Bxb1 {[%emt 0:00:00]} 13. Rxb1 {[%emt 0:00:14]} Ne7 {[%emt 0:03:00]} 14. b5 {[%emt 0:05:36]} Ng6 {[%emt 0:00:00]} 15. Qb3 {[%emt 0:06:58]} Bc5 {[%emt 0:01:00]} 16. b6 {[%emt 0:07:36]} Qd7 {[%emt 0:00:00]} 17. Nf3 {[%emt 0:07:57]} Rc8 {[%emt 0:00:00]} 18. h4 {[%emt 0:00:34]} h6 {[%emt 0:00:00]} 19. Rd1 {[%emt 0:03:38]} Qc6 {[%emt 0:00:00]} 20. Rd3 {[%emt 0:05:01]} O-O {[%emt 0:00:00]} 21. h5 {[%emt 0:00:59]} Ne7 {[%emt 0:00:00]} 22. Bf4 {[%emt 0:02:06]} Qe8 {[%emt 0:00:00]} 23. Qd1 {[%emt 0:04:29]} Nc6 {[%emt 0:00:00]} 24. Qe2 {[%emt 0:03:35]} Na5 {[%emt 0:00:00]} 25. Nd4 {[%emt 0:04:19]} Bxd4 {[%emt 0:00:00]} 26. cxd4 {[%emt 0:01:34]} Qxa4 {[%emt 0:02:55]} 27. Rg3 {[%emt 0:00:26]} Kh8 {[%emt 0:00:38]} 28. Bxh6 {[%emt 0:01:32]} gxh6 {[%emt 0:00:43]} 29. Qe3 {[%emt 0:00:27]} Kh7 {[%emt 0:00:03]} 30. Qd3+ {[%emt 0:00:19]} Kh8 {[%emt 0:00:04]} 31. Qf3 {[%emt 0:01:14]} f5 {[%emt 0:02:08]} 32. exf6 {[%emt 0:07:35]} Qxd4 {[%emt 0:01:18]} 33. Rg6 {[%emt 0:00:34]} Kh7 {[%emt 0:00:04]} 34. Rd1 {[%emt 0:03:59]} Qe5 {[%emt 0:00:20]} 35. Qd3 {[%emt 0:03:41]} Qf5 {[%emt 0:01:06]} 36. Qxf5 {[%emt 0:00:12]} exf5 {[%emt 0:00:01]} 37. Rxd5 {[%emt 0:00:01]} Rf7 {[%emt 0:00:44]} 38. Rxa5 {[%emt 0:00:03]} Rc6 {[%emt 0:00:14]} 39. Rxf5 {[%emt 0:00:08]} Rxb6 {[%emt 0:00:01]} 40. g4 {[%emt 0:01:01]} Rb5 {[%emt 0:01:38]} 41. Rxb5 {[%emt 0:00:53]} axb5 {[%emt 0:00:02]} 42. Kf1 {[%emt 0:00:01]} b4 {[%emt 0:00:44]} 43. Ke2 {[%emt 0:00:17]} b3 {[%emt 0:00:01]} 44. Kd2 {[%emt 0:00:21]} Rd7+ {[%emt 0:01:10]} 45. Kc3 {[%emt 0:03:40]} b2 {[%emt 0:01:06]} 46. Kxb2 {[%emt 0:00:00]} Rd2+ {[%emt 0:00:00]} 47. Kc3 {[%emt 0:01:00]} Rxf2 {[%emt 0:01:00]} 48. Kd4 {[%emt 0:00:00]} Rf1 {[%emt 0:00:00]} 49. Ke5 {[%emt 0:00:00]} Re1+ {[%emt 0:00:26]} 50. Kf5 {[%emt 0:00:00]} Rf1+ {[%emt 0:00:14]} 51. Ke6 {[%emt 0:00:00]} Re1+ {[%emt 0:00:49]} 52. Kf7 {[%emt 0:00:00]} Re4 {[%emt 0:00:30]} 53. Rg7+ {[%emt 0:00:00]} Kh8 {[%emt 0:00:01]} 54. g5 {[%emt 0:00:00]} hxg5 {[%emt 0:00:31]} 55. Kg6 {[%emt 0:00:00]} g4 {[%emt 0:00:58]} 56. Rxb7 {[%emt 0:00:00]} Re8 {[%emt 0:00:28]} 57. Rh7+ {[%emt 0:00:00]} 1-0